fUSD/lending_fUSD_20260517
["ID","MTS","AMOUNT","RATE_DAILY","PERIOD"]
[422450034,1778961038000,-847.65354797,0.00018702,2]
[422450098,1778961040000,-3222.36612,0.00018702,2]
[422450097,1778961040000,-571.59043307,0.00018702,2]
[422450095,1778961040000,-365.54270048,0.00018702,2]
[422450096,1778961040000,-9741.00666076,0.00018702,2]
[422450094,1778961040000,-2739.0,0.00018702,2]
[422450093,1778961040000,-84241.50484087,0.00018702,2]
[422450099,1778961040000,-398.23705892,0.00018702,2]
[422450119,1778961043000,-158174.99462128,0.00018702,2]
[422450121,1778961087000,2000.0,0.00029321,120]
[422450122,1778961122000,295.6455,0.00028244,120]
[422450123,1778961177000,153.63,0.00029901,120]
[422450125,1778961346000,152.0,0.00011942,7]
[422450128,1778961647000,152.0,0.00011943,7]
[422450127,1778961647000,152.0,0.00011943,7]
[422450129,1778961718000,161.56,8.622e-05,2]
[422450130,1778961719000,161.56,9.542e-05,2]
[422450131,1778961750000,470.41257966,8e-05,2]
[422450132,1778961753000,1000.0,0.0003013,120]
[422450135,1778961852000,-161.56,0.00011383,2]
[422450134,1778961852000,-8377.42590679,0.00011,2]
[422450133,1778961852000,-161.56,0.00010463,2]
[422450140,1778961853000,-42364.93172562,0.00011899,2]
[422450141,1778961853000,-45398.03045182,0.000119,2]
[422450139,1778961853000,-150.0,0.00011899,2]
[422450138,1778961853000,-276.69400433,0.00011509,2]
[422450137,1778961853000,-250.0,0.00011509,2]
[422450136,1778961853000,-2859.79791144,0.000114,2]
[422450144,1778961905000,395.27159806,7.888e-05,2]
[422450146,1778961927000,978.23853856,0.0001,2]
[422450147,1778961933000,878.99751222,9.04e-05,2]
[422450148,1778961961000,-25000.0,0.000107,2]
[422450149,1778962059000,163.55,0.00027713,120]
[422450153,1778962079000,-150.0,0.0001102,2]
[422450151,1778962079000,-150.0,0.00010806,2]
[422450150,1778962079000,-1645.39513196,0.000107,2]
[422450152,1778962079000,-150.0,0.00010913,2]
[422450155,1778962079000,-150.0,0.00011234,2]
[422450154,1778962079000,-150.0,0.00011127,2]
[422450158,1778962079000,-194.0,0.00011899,2]
[422450157,1778962079000,-250.0,0.0001177,2]
[422450156,1778962079000,-322.74642958,0.00011509,2]
[422450161,1778962079000,-300.0,0.00011899,2]
[422450162,1778962079000,-41037.85843846,0.000119,2]
[422450159,1778962079000,-300.0,0.00011899,2]
[422450160,1778962079000,-1200.0,0.00011899,2]
[422450163,1778962114000,-21000.0,0.000119,2]
[422450175,1778962232000,-77229.43490329,0.000119,2]
[422450173,1778962232000,-370.50525017,0.000119,2]
[422450172,1778962232000,-3463.17620597,0.000119,2]
[422450171,1778962232000,-1200.0,0.00011899,2]
[422450174,1778962232000,-631.16,0.000119,2]
[422450170,1778962232000,-1059.70895469,0.00011888,2]
[422450238,1778962238000,-576.92,0.00013687,2]
[422450221,1778962238000,-150.99,0.00013089,2]
[422450223,1778962238000,-250.0,0.0001309,2]
[422450218,1778962238000,-250.0,0.00013077,2]
[422450219,1778962238000,-9999.99,0.00013089,2]
[422450228,1778962238000,-340.17,0.00013231,2]
[422450240,1778962238000,-166.66,0.00013699,2]
[422450232,1778962238000,-1852.42,0.00013317,2]
[422450226,1778962238000,-1000.0,0.00013229,2]
[422450233,1778962238000,-500.0,0.0001334,2]
[422450220,1778962238000,-5737.73,0.00013089,2]
[422450230,1778962238000,-200.0,0.00013243,2]
[422450222,1778962238000,-698.0,0.00013089,2]
[422450235,1778962238000,-2237.45627966,0.00013381,2]
[422450216,1778962238000,-19999.99,0.00012918,2]
[422450217,1778962238000,-999.99,0.00012918,2]
[422450214,1778962238000,-2237.45627966,0.0001265,2]
[422450215,1778962238000,-163.55,0.00012918,2]
[422450213,1778962238000,-161.56,0.00012303,2]
[422450211,1778962238000,-2237.45627967,0.00011918,2]
[422450209,1778962238000,-663.41563793,0.00011918,2]
[422450210,1778962238000,-1000.0,0.00011918,2]
[422450212,1778962238000,-24695.55125529,0.00012088,2]
[422450207,1778962238000,-20760.39377372,0.000119,2]
[422450208,1778962238000,-250.0,0.00011909,2]
[422450243,1778962238000,-2500.0,0.00013699,2]
[422450224,1778962238000,-161.56,0.00013224,2]
[422450242,1778962238000,-200.0,0.00013699,2]
[422450265,1778962238000,-2237.45627966,0.00014844,2]
[422450269,1778962238000,-18663.01447715,0.000149,2]
[422450244,1778962238000,-535.76597327,0.0001378,2]
[422450278,1778962238000,-3661.68591582,0.00014999,2]
[422450272,1778962238000,-166.66,0.00014925,2]
[422450270,1778962238000,-600.0,0.000149,5]
[422450268,1778962238000,-500.0,0.000149,5]
[422450264,1778962238000,-2965.56214272,0.00014827,2]
[422450273,1778962238000,-761.86192024,0.0001499,2]
[422450271,1778962238000,-150.0,0.00014907,2]
[422450266,1778962238000,-2500.0,0.00014899,2]
[422450267,1778962238000,-6765.34491895,0.000149,2]
[422450274,1778962238000,-151.0,0.00014997,2]
[422450277,1778962238000,-3661.68591582,0.00014999,2]
[422450276,1778962238000,-3661.68591582,0.00014999,2]
[422450275,1778962238000,-308.72335829,0.00014999,2]
[422450252,1778962238000,-409.47966664,0.00014276,2]
[422450245,1778962238000,-166.66,0.00013944,2]
[422450247,1778962238000,-2237.45627966,0.00014113,2]
[422450258,1778962238000,-200.0,0.000147,5]
[422450246,1778962238000,-250.0,0.00014,2]
[422450248,1778962238000,-161.56,0.00014144,2]
[422450250,1778962238000,-166.66,0.00014189,2]
[422450263,1778962238000,-400.0,0.000148,5]
[422450262,1778962238000,-200.0,0.000148,5]
[422450259,1778962238000,-476.04545747,0.00014702,2]
[422450260,1778962238000,-150.0,0.00014794,2]
[422450254,1778962238000,-166.66,0.00014435,2]
[422450256,1778962238000,-166.66,0.0001468,2]
[422450261,1778962238000,-23961.8083,0.000148,2]
[422450325,1778962239000,-3661.68591582,0.00014999,2]
[422450317,1778962239000,-3661.68591582,0.00014999,2]
[422450319,1778962239000,-3661.68591582,0.00014999,2]
[422450318,1778962239000,-3661.68591582,0.00014999,2]
[422450320,1778962239000,-3661.68591582,0.00014999,2]
[422450321,1778962239000,-3661.68591582,0.00014999,2]
[422450335,1778962239000,-3577.99023773,0.00014999,2]
[422450316,1778962239000,-3661.68591582,0.00014999,2]
[422450314,1778962239000,-3661.68591582,0.00014999,2]
[422450302,1778962239000,-3661.68591582,0.00014999,2]
[422450306,1778962239000,-3661.68591582,0.00014999,2]
[422450323,1778962239000,-3661.68591582,0.00014999,2]
[422450315,1778962239000,-3661.68591582,0.00014999,2]
[422450322,1778962239000,-3661.68591582,0.00014999,2]
[422450336,1778962239000,-3577.99023773,0.00014999,2]
[422450326,1778962239000,-3661.68591582,0.00014999,2]
[422450328,1778962239000,-3661.68591582,0.00014999,2]
[422450338,1778962239000,-3577.99023773,0.00014999,2]
[422450339,1778962239000,-3577.99023773,0.00014999,2]
[422450340,1778962239000,-3577.99023773,0.00014999,2]
[422450329,1778962239000,-3661.68591581,0.00014999,2]
[422450332,1778962239000,-3577.99023773,0.00014999,2]
[422450330,1778962239000,-3661.68591582,0.00014999,2]
[422450333,1778962239000,-3577.99023773,0.00014999,2]
[422450327,1778962239000,-3661.68591582,0.00014999,2]
[422450331,1778962239000,-3577.99023773,0.00014999,2]
[422450337,1778962239000,-3577.99023773,0.00014999,2]
[422450308,1778962239000,-3661.68591582,0.00014999,2]
[422450324,1778962239000,-3661.68591582,0.00014999,2]
[422450311,1778962239000,-3661.68591582,0.00014999,2]
[422450376,1778962239000,-500.0,0.00014999,2]
[422450304,1778962239000,-3661.68591582,0.00014999,2]
[422450334,1778962239000,-3577.99023773,0.00014999,2]
[422450279,1778962239000,-3661.68591582,0.00014999,2]
[422450287,1778962239000,-3661.68591582,0.00014999,2]
[422450288,1778962239000,-3661.68591582,0.00014999,2]
[422450284,1778962239000,-3661.68591582,0.00014999,2]
[422450283,1778962239000,-3661.68591582,0.00014999,2]
[422450285,1778962239000,-3661.68591582,0.00014999,2]
[422450281,1778962239000,-3661.68591582,0.00014999,2]
[422450282,1778962239000,-3661.68591582,0.00014999,2]
[422450280,1778962239000,-3661.68591582,0.00014999,2]
[422450286,1778962239000,-3661.68591582,0.00014999,2]
[422450289,1778962239000,-3661.68591582,0.00014999,2]
[422450300,1778962239000,-3661.68591582,0.00014999,2]
[422450292,1778962239000,-3661.68591582,0.00014999,2]
[422450309,1778962239000,-3661.68591582,0.00014999,2]
[422450293,1778962239000,-3661.68591582,0.00014999,2]
[422450294,1778962239000,-3661.68591582,0.00014999,2]
[422450290,1778962239000,-3661.68591582,0.00014999,2]
[422450301,1778962239000,-3661.68591582,0.00014999,2]
[422450296,1778962239000,-3661.68591582,0.00014999,2]
[422450299,1778962239000,-3661.68591582,0.00014999,2]
[422450295,1778962239000,-3661.68591582,0.00014999,2]
[422450298,1778962239000,-3661.68591582,0.00014999,2]
[422450297,1778962239000,-3661.68591582,0.00014999,2]
[422450303,1778962239000,-3661.68591582,0.00014999,2]
[422450313,1778962239000,-3661.68591582,0.00014999,2]
[422450305,1778962239000,-3661.68591582,0.00014999,2]
[422450307,1778962239000,-3661.68591582,0.00014999,2]
[422450310,1778962239000,-3661.68591582,0.00014999,2]
[422450312,1778962239000,-3661.68591582,0.00014999,2]
[422450291,1778962239000,-3661.68591582,0.00014999,2]
[422450342,1778962239000,-3577.99023773,0.00014999,2]
[422450390,1778962239000,-500.0,0.00014999,2]
[422450353,1778962239000,-3577.99023773,0.00014999,2]
[422450375,1778962239000,-500.0,0.00014999,2]
[422450379,1778962239000,-500.0,0.00014999,2]
[422450378,1778962239000,-500.0,0.00014999,2]
[422450381,1778962239000,-386.5375887,0.00014999,2]
[422450389,1778962239000,-500.0,0.00014999,2]
[422450387,1778962239000,-500.0,0.00014999,2]
[422450383,1778962239000,-500.0,0.00014999,2]
[422450388,1778962239000,-500.0,0.00014999,2]
[422450386,1778962239000,-500.0,0.00014999,2]
[422450385,1778962239000,-500.0,0.00014999,2]
[422450341,1778962239000,-3577.99023773,0.00014999,2]
[422450391,1778962239000,-500.0,0.00014999,2]
[422450382,1778962239000,-500.0,0.00014999,2]
[422450393,1778962239000,-325.41863725,0.00014999,2]
[422450392,1778962239000,-500.0,0.00014999,2]
[422450395,1778962239000,-500.0,0.00014999,2]
[422450406,1778962239000,-161.56,0.00015065,2]
[422450405,1778962239000,-153364.70746739,0.00015,2]
[422450407,1778962239000,-275.0,0.000152,2]
[422450397,1778962239000,-500.0,0.00014999,2]
[422450398,1778962239000,-3577.99023775,0.00014999,2]
[422450394,1778962239000,-500.0,0.00014999,2]
[422450400,1778962239000,-612.26877207,0.00014999,2]
[422450396,1778962239000,-500.0,0.00014999,2]
[422450403,1778962239000,-509.59573628,0.00014999,2]
[422450401,1778962239000,-500.0,0.00014999,2]
[422450404,1778962239000,-982905.98546498,0.00015,2]
[422450402,1778962239000,-523.30296489,0.00014999,2]
[422450399,1778962239000,-3577.99023775,0.00014999,2]
[422450377,1778962239000,-500.0,0.00014999,2]
[422450371,1778962239000,-500.0,0.00014999,2]
[422450384,1778962239000,-500.0,0.00014999,2]
[422450374,1778962239000,-500.0,0.00014999,2]
[422450354,1778962239000,-3577.99023773,0.00014999,2]
[422450372,1778962239000,-500.0,0.00014999,2]
[422450343,1778962239000,-3577.99023773,0.00014999,2]
[422450344,1778962239000,-3577.99023773,0.00014999,2]
[422450345,1778962239000,-3577.99023773,0.00014999,2]
[422450349,1778962239000,-3577.99023773,0.00014999,2]
[422450350,1778962239000,-3577.99023773,0.00014999,2]
[422450348,1778962239000,-3577.99023773,0.00014999,2]
[422450347,1778962239000,-3577.99023773,0.00014999,2]
[422450351,1778962239000,-3577.99023773,0.00014999,2]
[422450346,1778962239000,-3577.99023773,0.00014999,2]
[422450355,1778962239000,-3577.99023773,0.00014999,2]
[422450356,1778962239000,-3577.99023773,0.00014999,2]
[422450368,1778962239000,-500.0,0.00014999,2]
[422450362,1778962239000,-3577.99023773,0.00014999,2]
[422450352,1778962239000,-3577.99023773,0.00014999,2]
[422450357,1778962239000,-3577.99023773,0.00014999,2]
[422450363,1778962239000,-3577.99023773,0.00014999,2]
[422450369,1778962239000,-500.0,0.00014999,2]
[422450380,1778962239000,-227.22315961,0.00014999,2]
[422450370,1778962239000,-500.0,0.00014999,2]
[422450365,1778962239000,-500.0,0.00014999,2]
[422450361,1778962239000,-3577.99023773,0.00014999,2]
[422450373,1778962239000,-629.9784744,0.00014999,2]
[422450359,1778962239000,-3577.99023773,0.00014999,2]
[422450360,1778962239000,-3577.99023773,0.00014999,2]
[422450364,1778962239000,-500.0,0.00014999,2]
[422450358,1778962239000,-3577.99023773,0.00014999,2]
[422450367,1778962239000,-500.0,0.00014999,2]
[422450366,1778962239000,-500.0,0.00014999,2]
[422450459,1778962240000,-151.0,0.0001645,2]
[422450455,1778962240000,-151.0,0.0001645,2]
[422450456,1778962240000,-500.0,0.0001645,2]
[422450438,1778962240000,-588.0,0.00016444,2]
[422450439,1778962240000,-588.0,0.00016444,2]
[422450440,1778962240000,-588.0,0.00016444,2]
[422450442,1778962240000,-588.0,0.00016444,2]
[422450441,1778962240000,-588.0,0.00016444,2]
[422450436,1778962240000,-588.0,0.00016444,2]
[422450448,1778962240000,-588.0,0.00016444,2]
[422450433,1778962240000,-588.0,0.00016444,2]
[422450443,1778962240000,-588.0,0.00016444,2]
[422450457,1778962240000,-151.0,0.0001645,2]
[422450451,1778962240000,-200.0,0.0001645,2]
[422450458,1778962240000,-500.0,0.0001645,2]
[422450449,1778962240000,-608.52312237,0.00016444,2]
[422450453,1778962240000,-151.0,0.0001645,2]
[422450454,1778962240000,-500.0,0.0001645,2]
[422450452,1778962240000,-500.0,0.0001645,2]
[422450461,1778962240000,-151.0,0.0001645,2]
[422450462,1778962240000,-151.0,0.0001645,2]
[422450460,1778962240000,-500.0,0.0001645,2]
[422450463,1778962240000,-151.0,0.0001645,2]
[422450472,1778962240000,-6765.34491894,0.00016501,2]
[422450471,1778962240000,-1012.77601642,0.0001645,2]
[422450444,1778962240000,-588.0,0.00016444,2]
[422450450,1778962240000,-250.0,0.00016444,2]
[422450434,1778962240000,-588.0,0.00016444,2]
[422450473,1778962240000,-263.408927,0.00016621,2]
[422450445,1778962240000,-588.0,0.00016444,2]
[422450414,1778962240000,-161.56,0.00015985,2]
[422450416,1778962240000,-6765.34491894,0.00016101,2]
[422450418,1778962240000,-18663.01447715,0.00016329,2]
[422450413,1778962240000,-6765.34491894,0.000157,2]
[422450409,1778962240000,-6765.34491894,0.000153,2]
[422450408,1778962240000,-500.0,0.000152,2]
[422450411,1778962240000,-576.92,0.00015398,2]
[422450419,1778962240000,-588.0,0.00016444,2]
[422450417,1778962240000,-2237.45627966,0.00016307,2]
[422450415,1778962240000,-300.0,0.00016,2]
[422450421,1778962240000,-150.0,0.00016444,2]
[422450427,1778962240000,-588.0,0.00016444,2]
[422450435,1778962240000,-284.63445457,0.00016444,2]
[422450432,1778962240000,-588.0,0.00016444,2]
[422450412,1778962240000,-2237.45627966,0.00015576,2]
[422450426,1778962240000,-588.0,0.00016444,2]
[422450420,1778962240000,-588.0,0.00016444,2]
[422450425,1778962240000,-150.0,0.00016444,2]
[422450424,1778962240000,-588.0,0.00016444,2]
[422450431,1778962240000,-588.0,0.00016444,2]
[422450422,1778962240000,-588.0,0.00016444,2]
[422450430,1778962240000,-151.17490165,0.00016444,2]
[422450423,1778962240000,-150.0,0.00016444,2]
[422450429,1778962240000,-588.0,0.00016444,2]
[422450447,1778962240000,-588.0,0.00016444,2]
[422450446,1778962240000,-588.0,0.00016444,2]
[422450428,1778962240000,-150.0,0.00016444,2]
[422450464,1778962240000,-151.0,0.0001645,2]
[422450514,1778962240000,-150.0,0.00016924,2]
[422450467,1778962240000,-500.0,0.0001645,2]
[422450498,1778962240000,-150.0,0.00016821,2]
[422450499,1778962240000,-150.0,0.00016828,2]
[422450507,1778962240000,-150.0,0.00016873,2]
[422450503,1778962240000,-150.0,0.00016866,2]
[422450505,1778962240000,-150.0,0.00016873,2]
[422450509,1778962240000,-150.0,0.00016892,2]
[422450506,1778962240000,-150.0,0.00016873,2]
[422450510,1778962240000,-150.0,0.00016895,2]
[422450508,1778962240000,-150.0,0.00016887,2]
[422450504,1778962240000,-150.0,0.00016866,2]
[422450513,1778962240000,-150.0,0.00016917,2]
[422450512,1778962240000,-161.56,0.00016905,2]
[422450502,1778962240000,-211.251982,0.00016865,2]
[422450511,1778962240000,-6765.34491894,0.00016901,2]
[422450517,1778962240000,-150.0,0.00016941,2]
[422450527,1778962240000,-150.0,0.00017015,2]
[422450521,1778962240000,-150.0,0.00016961,2]
[422450519,1778962240000,-150.0,0.0001695,2]
[422450520,1778962240000,-3734.1588354,0.0001696,2]
[422450516,1778962240000,-150.0,0.00016941,2]
[422450522,1778962240000,-150.0,0.00016983,2]
[422450518,1778962240000,-150.0,0.0001695,2]
[422450523,1778962240000,-200.0,0.00016998,2]
[422450525,1778962240000,-150.0,0.00017008,2]
[422450524,1778962240000,-150.0,0.00017005,2]
[422450470,1778962240000,-440.13154347,0.0001645,2]
[422450515,1778962240000,-150.0,0.00016939,2]
[422450501,1778962240000,-150.0,0.0001685,2]
[422450526,1778962240000,-150.0,0.00017015,2]
[422450494,1778962240000,-150.0,0.00016792,2]
[422450500,1778962240000,-150.0,0.00016834,2]
[422450468,1778962240000,-500.0,0.0001645,2]
[422450465,1778962240000,-259.0814597,0.0001645,2]
[422450466,1778962240000,-500.0,0.0001645,2]
[422450469,1778962240000,-500.0,0.0001645,2]
[422450474,1778962240000,-196.479533,0.00016621,2]
[422450481,1778962240000,-217.40567745,0.00016718,2]
[422450482,1778962240000,-150.0,0.00016718,2]
[422450475,1778962240000,-163.880326,0.00016687,2]
[422450476,1778962240000,-339.55057,0.00016698,2]
[422450477,1778962240000,-150.0,0.00016718,2]
[422450483,1778962240000,-150.0,0.00016718,2]
[422450479,1778962240000,-150.0,0.00016718,2]
[422450480,1778962240000,-150.0,0.00016718,2]
[422450484,1778962240000,-150.0,0.00016718,2]
[422450478,1778962240000,-150.0,0.00016718,2]
[422450497,1778962240000,-150.0,0.00016806,2]
[422450493,1778962240000,-150.0,0.00016784,2]
[422450495,1778962240000,-150.0,0.00016792,2]
[422450492,1778962240000,-150.0,0.00016776,2]
[422450488,1778962240000,-150.0,0.00016718,2]
[422450496,1778962240000,-150.0,0.00016795,2]
[422450489,1778962240000,-150.0,0.00016718,2]
[422450490,1778962240000,-150.0,0.0001674,2]
[422450485,1778962240000,-150.0,0.00016718,2]
[422450486,1778962240000,-150.0,0.00016718,2]
[422450487,1778962240000,-150.13985587,0.00016718,2]
[422450491,1778962240000,-150.0,0.00016762,2]
[422450605,1778962241000,-150.0,0.00017387,2]
[422450594,1778962241000,-150.0,0.00017312,2]
[422450596,1778962241000,-150.0,0.00017337,2]
[422450595,1778962241000,-150.0,0.00017315,2]
[422450587,1778962241000,-150.0,0.0001726,2]
[422450592,1778962241000,-6765.34491894,0.00017301,2]
[422450589,1778962241000,-150.0,0.00017271,2]
[422450590,1778962241000,-150.0,0.00017293,2]
[422450593,1778962241000,-150.0,0.00017312,2]
[422450579,1778962241000,-150.0,0.00017234,2]
[422450582,1778962241000,-150.0,0.00017238,2]
[422450584,1778962241000,-150.0,0.0001724,2]
[422450591,1778962241000,-150.0,0.00017298,2]
[422450600,1778962241000,-150.0,0.00017337,2]
[422450610,1778962241000,-150.0,0.00017425,2]
[422450598,1778962241000,-150.0,0.00017337,2]
[422450597,1778962241000,-150.0,0.00017337,2]
[422450603,1778962241000,-150.0,0.00017381,2]
[422450602,1778962241000,-150.0,0.00017359,2]
[422450604,1778962241000,-150.0,0.00017387,2]
[422450606,1778962241000,-150.0,0.00017393,2]
[422450608,1778962241000,-150.0,0.00017414,2]
[422450609,1778962241000,-150.0,0.00017414,2]
[422450618,1778962241000,-329.15607615,0.0001749,2]
[422450617,1778962241000,-2052.49,0.00017482,2]
[422450616,1778962241000,-150.0,0.00017472,2]
[422450613,1778962241000,-150.0,0.00017461,2]
[422450580,1778962241000,-150.0,0.00017238,2]
[422450601,1778962241000,-150.0,0.00017356,2]
[422450576,1778962241000,-150.0,0.00017226,2]
[422450561,1778962241000,-150.0,0.00017182,2]
[422450585,1778962241000,-150.0,0.00017249,2]
[422450528,1778962241000,-150.0,0.00017027,2]
[422450543,1778962241000,-150.0,0.00017105,2]
[422450541,1778962241000,-150.0,0.00017094,2]
[422450537,1778962241000,-150.0,0.00017089,2]
[422450536,1778962241000,-150.0,0.00017072,2]
[422450539,1778962241000,-150.0,0.00017089,2]
[422450529,1778962241000,-150.0,0.00017027,2]
[422450531,1778962241000,-150.0,0.00017027,2]
[422450530,1778962241000,-150.0,0.00017027,2]
[422450534,1778962241000,-150.0,0.00017056,2]
[422450533,1778962241000,-150.0,0.0001705,2]
[422450532,1778962241000,-2237.45627966,0.00017039,2]
[422450545,1778962241000,-576.92,0.00017108,2]
[422450575,1778962241000,-150.0,0.00017224,2]
[422450547,1778962241000,-150.0,0.00017116,2]
[422450548,1778962241000,-150.0,0.00017124,2]
[422450607,1778962241000,-150.0,0.00017403,2]
[422450566,1778962241000,-150.0,0.00017182,2]
[422450563,1778962241000,-150.0,0.00017182,2]
[422450551,1778962241000,-150.0,0.00017131,2]
[422450564,1778962241000,-150.0,0.00017182,2]
[422450557,1778962241000,-150.0,0.00017164,2]
[422450554,1778962241000,-150.0,0.0001716,2]
[422450558,1778962241000,-150.0,0.00017164,2]
[422450568,1778962241000,-150.0,0.00017182,2]
[422450552,1778962241000,-150.0,0.00017138,2]
[422450570,1778962241000,-150.0,0.00017204,2]
[422450573,1778962241000,-329.15607616,0.00017212,2]
[422450535,1778962241000,-150.0,0.00017066,2]
[422450614,1778962241000,-150.0,0.00017461,2]
[422450599,1778962241000,-150.0,0.00017337,2]
[422450611,1778962241000,-150.0,0.0001744,2]
[422450651,1778962241000,-150.0,0.00017713,2]
[422450655,1778962241000,-150.0,0.0001775,2]
[422450649,1778962241000,-6765.34491894,0.00017702,2]
[422450654,1778962241000,-150.0,0.00017735,2]
[422450656,1778962241000,-18663.01447715,0.00017757,2]
[422450648,1778962241000,-150.0,0.00017691,2]
[422450658,1778962241000,-150.0,0.00017758,2]
[422450666,1778962241000,-150.0,0.00017801,2]
[422450657,1778962241000,-150.0,0.00017757,2]
[422450663,1778962241000,-150.0,0.00017779,2]
[422450669,1778962241000,-553.09665598,0.00017808,2]
[422450659,1778962241000,-150.0,0.00017758,2]
[422450665,1778962241000,-150.0,0.00017801,2]
[422450660,1778962241000,-150.0,0.00017763,2]
[422450662,1778962241000,-2237.45627966,0.0001777,2]
[422450661,1778962241000,-329.15607615,0.00017768,2]
[422450664,1778962241000,-150.0,0.00017801,2]
[422450667,1778962241000,-500.0,0.00017808,2]
[422450668,1778962241000,-500.0,0.00017808,2]
[422450671,1778962241000,-500.0,0.00017808,2]
[422450673,1778962241000,-150.0,0.00017821,2]
[422450670,1778962241000,-500.0,0.00017808,2]
[422450672,1778962241000,-499.99999999,0.00017808,2]
[422450675,1778962241000,-150.0,0.00017832,2]
[422450678,1778962241000,-150.0,0.00017853,2]
[422450679,1778962241000,-150.0,0.00017868,2]
[422450674,1778962241000,-150.0,0.00017823,2]
[422450612,1778962241000,-150.0,0.00017448,2]
[422450676,1778962241000,-150.0,0.00017832,2]
[422450650,1778962241000,-150.0,0.00017705,2]
[422450653,1778962241000,-150.0,0.00017731,2]
[422450677,1778962241000,-150.0,0.00017846,2]
[422450646,1778962241000,-150.0,0.00017684,2]
[422450615,1778962241000,-150.0,0.0001747,2]
[422450652,1778962241000,-150.0,0.00017724,2]
[422450619,1778962241000,-150.0,0.00017492,2]
[422450623,1778962241000,-150.0,0.0001753,2]
[422450622,1778962241000,-150.0,0.00017514,2]
[422450621,1778962241000,-150.0,0.00017492,2]
[422450626,1778962241000,-150.0,0.00017536,2]
[422450628,1778962241000,-200.0,0.00017546,2]
[422450624,1778962241000,-150.0,0.00017535,2]
[422450630,1778962241000,-150.0,0.00017562,2]
[422450631,1778962241000,-150.0,0.00017569,2]
[422450625,1778962241000,-150.0,0.00017535,2]
[422450629,1778962241000,-150.0,0.00017558,2]
[422450627,1778962241000,-150.0,0.00017543,2]
[422450632,1778962241000,-150.0,0.0001758,2]
[422450620,1778962241000,-150.0,0.00017492,2]
[422450635,1778962241000,-150.0,0.00017609,2]
[422450647,1778962241000,-150.0,0.00017684,2]
[422450645,1778962241000,-150.0,0.00017669,2]
[422450644,1778962241000,-150.0,0.00017647,2]
[422450639,1778962241000,-150.0,0.00017647,2]
[422450643,1778962241000,-150.0,0.00017647,2]
[422450642,1778962241000,-150.0,0.00017647,2]
[422450638,1778962241000,-150.0,0.00017647,2]
[422450640,1778962241000,-150.0,0.00017647,2]
[422450637,1778962241000,-150.0,0.00017624,2]
[422450634,1778962241000,-150.0,0.00017602,2]
[422450636,1778962241000,-150.0,0.00017609,2]
[422450633,1778962241000,-150.0,0.00017589,2]
[422450641,1778962241000,-150.0,0.00017647,2]
[422450724,1778962242000,-1932.0,0.00018153,2]
[422450720,1778962242000,-150.0,0.0001813,2]
[422450722,1778962242000,-150.0,0.00018133,2]
[422450721,1778962242000,-150.0,0.0001813,2]
[422450716,1778962242000,-150.0,0.00018111,2]
[422450712,1778962242000,-150.0,0.00018069,2]
[422450709,1778962242000,-150.0,0.00018055,2]
[422450717,1778962242000,-150.0,0.00018111,2]
[422450711,1778962242000,-150.0,0.00018067,2]
[422450732,1778962242000,-1932.0,0.00018153,2]
[422450731,1778962242000,-1932.0,0.00018153,2]
[422450723,1778962242000,-1932.0,0.00018153,2]
[422450727,1778962242000,-1932.0,0.00018153,2]
[422450725,1778962242000,-1932.0,0.00018153,2]
[422450726,1778962242000,-1932.0,0.00018153,2]